[Event "German Bundesliga 2023-24"]
[Site "Germany"]
[Date "2024.02.25"]
[Round "11.54"]
[White "Kramer, Julian"]
[Black "Pubantz, Jan"]
[Result "1/2-1/2"]
[ECO "B13"]
[WhiteElo "2470"]
[BlackElo "2299"]
[Annotator "TA"]
[PlyCount "121"]
[EventDate "2023.10.20"]
[EventType "team-tourn"]
[EventCountry "GER"]
[SourceTitle "playchess.com"]
[Source "ChessBase"]
[SourceQuality "1"]
[TimeControl "40/6000+30:3000+30"]

{[%evp 15,121,8,18,-6,-8,-13,0,0,1,3,18,15,60,-45,-26,-5,-19,-39,0,-5,-9,-8,0,-49,-43,-80,-43,-43,-36,-49,-18,-22,-18,-14,-14,-16,-23,-85,-25,-27,-17,-16,-16,-9,-14,-10,-8,-7,0,0,0,0,0,-39,-39,-39,-8,-8,0,0,17,17,12,12,20,23,74,68,127,127,149,135,126,108,105,95,156,149,156,156,156,100,149,149,149,149,149,149,149,18,76,76,76,93,86,0,106,19,19,19,149,149,149,149,149,149,149,149]} 1. e4 {[%emt 0:00:07]} c6 {[%emt 0:00:06]} 2. d4 {[%emt 0:00:05]} d5 {[%emt 0:00:04]} 3. exd5 {[%emt 0:00:04]} cxd5 {[%emt 0:00:03]} 4. Bd3 {[%emt 0:00:07]} Nf6 {[%emt 0:00:46]} 5. h3 {[%emt 0:00:05]} Nc6 {[%emt 0:00:21]} 6. c3 {[%emt 0:03:49]} e5 {[%emt 0:00:16]} 7. dxe5 {[%emt 0:00:05]} Nxe5 {[%emt 0:00:04]} 8. Qe2 {[%emt 0:00:06]} Qe7 {[%emt 0:00:04]} 9. Bc2 {[%emt 0:00:19]} b6 {[%emt 0:03:29][%cal Oc8a6]} 10. Na3 {[%emt 0:00:14] [#]} Ba6 $1 {[%emt 0:01:51]} 11. Nb5 {[%emt 0:00:06]} (11. Qxa6 $2 Nf3+ 12. Kf1 Qe1#) 11... O-O-O {[%emt 0:02:07]} 12. a4 {[%emt 0:00:15]} Re8 {[%emt 0:02:46][%cal Od5d4]} 13. Kf1 {[%emt 0:03:42][%cal Ob5d6]} Kb7 {[%emt 0:19:40]} 14. Bf4 {[%emt 0:14:56]} ({White should try} 14. Qd1 $14) 14... Nc4 $1 $15 {[%emt 0:20:00] ...Qd7 is the strong threat.} 15. Qxe7+ {[%emt 0:11:59]} Bxe7 {[%emt 0:00:46]} 16. b3 {[%emt 0:03:57]} Nd6 {[%emt 0:10:03]} 17. Bxd6 {[%emt 0:11:11]} Bxd6 {[%emt 0:00:56]} 18. Ne2 $132 {[%emt 0:00:07][%mdl 2048] White is not keeping still} Be5 {[%emt 0:01:53]} 19. Rc1 {[%emt 0:15:04]} (19. h4 $11 {was preferrable.}) 19... Ne4 {[%emt 0:19:15]} 20. f4 {[%emt 0:12:34]} Bb8 {[%emt 0:05:09]} (20... Bxc3 $2 21. Bxe4 Rxe4 22. Nd6+ (22. Nbxc3 Bxe2+ 23. Kf2 Ba6 $18) (22. Nexc3 Rxf4+ 23. Ke2 Rb4 $18) (22. Rxc3 Bxb5 23. axb5 Rhe8 $18) 22... Kb8 23. Nxe4 $18) (20... Bxb5 {simplifies} 21. axb5 Bf6 22. Bxe4 Rxe4 23. g4 Rhe8) 21. Rd1 {[%emt 0:00:53]} Nf6 {[%emt 0:03:22]} 22. Kf2 {[%emt 0:10:27]} Re7 {[%emt 0:01:25]} 23. g3 {[%emt 0:02:13]} Rhe8 {[%emt 0:03:26]} 24. Rhe1 {[%emt 0:01:35]} h5 {[%emt 0:07:32]} 25. b4 {[%emt 0:07:18]} h4 {[%emt 0:00:35]} 26. g4 {[%emt 0:00:41]} (26. gxh4 $11 {remains equal.} Ka8 27. Nbd4) 26... Re3 {[%emt 0:02:20]} (26... g6 $17) 27. g5 $11 {[%emt 0:04:02]} Nh5 {[%emt 0:00:58]} 28. Bb3 $1 {[%emt 0:00:13] Really sharp!} Bxb5 {[%emt 0:03:24]} 29. Bxd5+ {[%emt 0:00:45]} Kc8 {[%emt 0:00:21]} (29... Bc6 $2 30. Bxc6+ (30. Bxf7 $2 Rf3+ 31. Kg1 Bxf4 $19) 30... Kxc6 31. Nd4+ Kb7 32. Rxe3 $18) 30. axb5 {[%emt 0:00:06]} Nxf4 {[%emt 0:00:39]} 31. Nxf4 {[%emt 0:00:39]} Bxf4 {[%emt 0:00:34]} (31... Rxe1 {simplifies} 32. Rxe1 Rxe1 33. Kxe1 Bxf4 34. Bxf7 Bxg5 35. Ke2 Bf6) 32. Rxe3 {[%emt 0:01:41]} Bxe3+ {[%emt 0:01:10][%mdl 4096] Endgame. KRB-KRB} 33. Kf3 {[%emt 0:00:03]} Bxg5 {[%emt 0:00:35]} 34. Bxf7 {[%emt 0:00:09]} Re3+ {[%emt 0:00:48]} 35. Kg4 {[%emt 0:00:10]} Bf6 {[%emt 0:00:16]} 36. c4 {[%emt 0:01:33]} Be7 {[%emt 0:00:47]} 37. Kf4 {[%emt 0:01:07]} Rc3 {[%emt 0:00:34]} 38. Be6+ {[%emt 0:00:34]} Kb8 {[%emt 0:00:11]} 39. Rd7 {[%emt 0:00:22]} Bxb4 {[%emt 0:00:50]} 40. Rxg7 {[%emt 0:01:16]} Rg3 {[%emt 0:00:31]} 41. Rh7 $16 {[%emt 0:51:59]} ({But not} 41. Rxg3 Bd6+ 42. Ke4 Bxg3 $11) 41... Bc3 {[%emt 0:17:32]} (41... Bd6+ $14 42. Ke4 Rg5) 42. Rxh4 {[%emt 0:00:00] White has more active pieces.} Rg7 {[%emt 0:00:53]} 43. Rh8+ {[%emt 0:00:00]} Kc7 {[%emt 0:05:50]} 44. Rc8+ {[%emt 0:00:00]} Kb7 {[%emt 0:01:37]} 45. Re8 {[%emt 0:00:00]} Bf6 {[%emt 0:03:06]} (45... a5 $142) 46. Kf5 {[%emt 0:00:00]} Bc3 {[%emt 0:02:31]} 47. h4 {[%emt 0:00:00][%cal Bh3h4,Bh4h5][%mdl 32]} Rh7 {[%emt 0:01:24]} 48. Kg4 {[%emt 0:00:00]} (48. Bd5+ $142 Kc7 49. Re3) 48... Kc7 {[%emt 0:01:41]} (48... Rg7+ $142 49. Kh3 Kc7) 49. h5 {[%emt 0:00:00]} Rh8 {[%emt 0:08:32]} 50. Bg8 {[%emt 0:00:00]} Kd7 {[%emt 0:00:26]} 51. Ra8 {[%emt 0:00:00]} Kd6 {[%emt 0:00:28] [#]} 52. Kg5 {[%emt 0:00:00]} (52. Bd5 $1 $16) 52... Bb2 {[%emt 0:02:43]} (52... Bd2+ $11 53. Kg4 Kc5) 53. Rc8 {[%emt 0:00:00]} Kd7 {[%emt 0:00:53]} 54. Rf8 {[%emt 0:00:00]} Ke7 {[%emt 0:00:51]} 55. Ra8 {[%emt 0:00:00]} Kd6 $1 {[%emt 0:00:18]} 56. Kg6 {[%emt 0:00:00]} (56. Re8 $16) 56... Bc1 $11 {[%emt 0:00:30]} 57. Bd5 {[%emt 0:00:00]} Rxa8 {[%emt 0:03:44]} (57... Rh6+ $11 58. Kg7 Rxh5) 58. Bxa8 $16 {[%emt 0:00:00] Black must now prevent h6.} Ke7 {[%emt 0:00:07]} 59. Kg7 {[%emt 0:00:00] h6 would kill now.} Bb2+ {[%emt 0:00:05]} 60. Kg8 {[%emt 0:00:00] And now h6 would win.} Bc1 {[%emt 0:00:05]} 61. Bb7 {[%emt 0:00:06]} 1/2-1/2

[Event "German Bundesliga 2023-24"]
[Site "Germany"]
[Date "2024.02.25"]
[Round "11.55"]
[White "Hoeffer, David"]
[Black "Zwirs, Nico"]
[Result "0-1"]
[ECO "D00"]
[WhiteElo "2323"]
[BlackElo "2476"]
[Annotator "ChessBase"]
[PlyCount "64"]
[EventDate "2023.10.20"]
[EventType "team-tourn"]
[EventCountry "GER"]
[SourceTitle "playchess.com"]
[Source "ChessBase"]
[SourceQuality "1"]
[TimeControl "40/6000+30:3000+30"]

1. d4 {[%emt 0:00:03]} d5 {[%emt 0:00:02]} 2. Nc3 {[%emt 0:00:06]} Nf6 {[%emt 0:00:12]} 3. Bf4 {[%emt 0:00:05]} e6 {[%emt 0:00:20]} 4. Nb5 {[%emt 0:00:04]} Na6 {[%emt 0:00:07]} 5. e3 {[%emt 0:00:04]} Be7 {[%emt 0:00:19]} 6. Nf3 {[%emt 0:00:05]} O-O {[%emt 0:00:24]} 7. h4 {[%emt 0:00:04]} Bd7 {[%emt 0:00:19]} 8. a4 {[%emt 0:01:35]} Ne4 {[%emt 0:04:37]} 9. Bd3 {[%emt 0:05:50]} c6 {[%emt 0:05:43]} 10. Nc3 {[%emt 0:02:10]} f5 {[%emt 0:08:32]} 11. Ne5 {[%emt 0:07:55]} Nxc3 {[%emt 0:29:00]} 12. bxc3 {[%emt 0:01:51]} c5 {[%emt 0:00:02]} 13. Bxa6 {[%emt 0:27:04]} bxa6 {[%emt 0:00:27]} 14. h5 {[%emt 0:00:09]} Be8 {[%emt 0:06:40]} 15. a5 {[%emt 0:11:43]} cxd4 {[%emt 0:16:18]} 16. exd4 {[%emt 0:00:26]} Rb8 {[%emt 0:02:41]} 17. Rh3 {[%emt 0:07:55]} Rb5 {[%emt 0:01:56]} 18. Rg3 {[%emt 0:00:47]} Bh4 {[%emt 0:01:04]} 19. Re3 {[%emt 0:12:46]} Rxa5 {[%emt 0:01:47]} 20. Nd3 {[%emt 0:00:09]} Bxh5 {[%emt 0:09:34]} 21. Qc1 {[%emt 0:10:27]} Bf7 {[%emt 0:01:37]} 22. Nc5 {[%emt 0:00:22]} Rxa1 {[%emt 0:08:06]} 23. Qxa1 {[%emt 0:00:01]} Bg5 {[%emt 0:00:17]} 24. Bxg5 {[%emt 0:10:38]} Qxg5 {[%emt 0:00:04]} 25. Nxe6 {[%emt 0:00:06]} Bxe6 {[%emt 0:04:38]} 26. Rxe6 {[%emt 0:00:05]} Qxg2 {[%emt 0:00:18]} 27. Qxa6 {[%emt 0:00:05]} Qg1+ {[%emt 0:00:31]} 28. Ke2 {[%emt 0:00:08]} f4 {[%emt 0:00:15]} 29. Kd2 {[%emt 0:03:10]} f3 {[%emt 0:01:39]} 30. Qxa7 {[%emt 0:02:37]} Qxf2+ {[%emt 0:00:20]} 31. Kc1 {[%emt 0:00:04]} Qf1+ {[%emt 0:01:14]} 32. Kd2 {[%emt 0:00:05]} Qg2+ {[%emt 0:00:13]} 0-1

[Event "German Bundesliga 2023-24"]
[Site "Germany"]
[Date "2024.02.25"]
[Round "11.56"]
[White "Heinemann, Thies"]
[Black "Voege, Tobias"]
[Result "1/2-1/2"]
[ECO "C09"]
[WhiteElo "2438"]
[BlackElo "2283"]
[Annotator "TA"]
[PlyCount "43"]
[EventDate "2023.10.20"]
[EventType "team-tourn"]
[EventCountry "GER"]
[SourceTitle "playchess.com"]
[Source "ChessBase"]
[SourceQuality "1"]
[TimeControl "40/6000+30:3000+30"]

{[%evp 12,43,27,21,19,21,28,29,29,18,22,30,22,23,27,19,16,16,18,14,24,8,19,10,30,22,36,34,27,21,35,33,36,32]} 1. e4 {[%emt 0:00:03]} e6 {[%emt 0:00:10]} 2. d4 {[%emt 0:00:08]} d5 {[%emt 0:00:07]} 3. Nd2 {[%emt 0:00:06]} c5 {[%emt 0:00:12]} 4. exd5 {[%emt 0:00:19]} exd5 {[%emt 0:00:17]} 5. Ngf3 {[%emt 0:00:54]} Nc6 {[%emt 0:00:22]} 6. Bb5 {[%emt 0:01:21]} Qe7+ {[%emt 0:00:44]} 7. Be2 {[%emt 0:00:50]} Qc7 {[%emt 0:00:28]} 8. O-O {[%emt 0:01:42]} Nf6 {[%emt 0:00:35]} 9. Re1 {[%emt 0:02:08]} cxd4 {[%emt 0:00:31] White has an edge.} 10. Nb3 {[%emt 0:01:31]} Bb4 {[%emt 0:00:30]} 11. Bd2 {[%emt 0:01:04][%cal Od2b4] Threatens to win with Bxb4!} Bxd2 {[%emt 0:00:30]} 12. Qxd2 {[%emt 0:00:16]} O-O {[%emt 0:00:21]} 13. Nbxd4 {[%emt 0:00:42]} Bg4 {[%emt 0:00:52]} 14. c3 {[%emt 0:02:38]} Rfe8 {[%emt 0:07:50]} 15. Bd3 {[%emt 0:05:05]} Bh5 {[%emt 0:21:30]} 16. h3 {[%emt 0:28:50]} (16. Rxe8+ {simplifies} Rxe8 17. Re1 Rxe1+ 18. Qxe1 Bxf3 19. Nxf3 g6 20. Qe2) 16... Rad8 {[%emt 0:24:40]} 17. Qg5 {[%emt 0:21:19]} Bg6 {[%emt 0:04:10]} 18. Rxe8+ {[%emt 0:04:55]} Rxe8 {[%emt 0:00:19]} 19. Bxg6 {[%emt 0:03:39]} hxg6 {[%emt 0:01:16]} 20. Rd1 {[%emt 0:02:04]} Na5 {[%emt 0:04:45]} 21. Qc1 {[%emt 0:09:44]} Nc4 {[%emt 0:04:02]} 22. Re1 {[%emt 0:04:57] Weighted Error Value: White=0.04 (flawless) /Black=0.05 (flawless) .  OK:         	White=5     	Black=7} 1/2-1/2

[Event "German Bundesliga 2023-24"]
[Site "Germany"]
[Date "2024.02.25"]
[Round "11.57"]
[White "Nisipeanu, Liviu-Dieter"]
[Black "Cheparinov, Ivan"]
[Result "1/2-1/2"]
[ECO "E53"]
[WhiteElo "2600"]
[BlackElo "2649"]
[Annotator "TA"]
[PlyCount "41"]
[EventDate "2023.10.20"]
[EventType "team-tourn"]
[EventCountry "GER"]
[SourceTitle "playchess.com"]
[Source "ChessBase"]
[SourceQuality "1"]
[TimeControl "40/6000+30:3000+30"]

{[%evp 15,41,0,9,0,0,-5,1,8,5,-13,12,16,0,0,18,-68,-57,-52,-32,-17,0,-1,0,0,-6,-24,-22,-13]} 1. d4 {[%emt 0:00:04]} Nf6 {[%emt 0:00:03]} 2. c4 {[%emt 0:00:05]} e6 {[%emt 0:00:04]} 3. Nc3 {[%emt 0:00:05]} Bb4 {[%emt 0:00:09]} 4. e3 {[%emt 0:00:05]} O-O {[%emt 0:00:06]} 5. Bd3 {[%emt 0:00:03]} d5 {[%emt 0:00:07]} 6. Nf3 {[%emt 0:00:04]} b6 {[%emt 0:00:39]} 7. cxd5 {[%emt 0:00:48]} exd5 {[%emt 0:00:07]} 8. O-O {[%emt 0:00:06]} c5 {[%emt 0:00:07]} 9. Bd2 {[%emt 0:18:09]} Nc6 {[%emt 0:06:02]} 10. a3 {[%emt 0:01:42]} Bxc3 {[%emt 0:11:41]} 11. Bxc3 {[%emt 0:00:05]} c4 {[%emt 0:00:20]} 12. Be2 {[%emt 0:07:00]} a5 {[%emt 0:02:26]} 13. Ne5 {[%emt 0:04:59]} Qc7 {[%emt 0:06:33]} 14. f3 {[%emt 0:08:54]} b5 {[%emt 0:02:19]} 15. b4 {[%emt 0:07:07]} (15. b3 $11) 15... axb4 {[%emt 0:01:58]} 16. axb4 {[%emt 0:00:06]} Bb7 {[%emt 0:00:59]} 17. Qd2 {[%emt 0:02:29]} Rae8 {[%emt 0:01:20]} 18. Bd1 {[%emt 0:04:40]} Nd7 {[%emt 0:03:13]} 19. Nxd7 {[%emt 0:07:53]} Qxd7 {[%emt 0:00:15]} 20. Bc2 {[%emt 0:00:04]} f5 {[%emt 0:05:50]} 21. Rfe1 {[%emt 0:14:01] Weighted Error Value: White=0.17 (very precise) /Black=0.07 (flawless) .  Mistake:       	White=1     	---        OK:         	White=5     	Black=5} 1/2-1/2

[Event "German Bundesliga 2023-24"]
[Site "Germany"]
[Date "2024.02.25"]
[Round "11.58"]
[White "Bjerre, Jonas Buhl"]
[Black "Bartel, Mateusz"]
[Result "1-0"]
[ECO "B11"]
[WhiteElo "2637"]
[BlackElo "2651"]
[Annotator "TA"]
[PlyCount "107"]
[EventDate "2023.10.20"]
[EventType "team-tourn"]
[EventCountry "GER"]
[SourceTitle "playchess.com"]
[Source "ChessBase"]
[SourceQuality "1"]
[TimeControl "40/6000+30:3000+30"]

{[%evp 36,107,77,-16,54,44,145,29,82,64,114,77,80,78,61,58,136,33,32,17,50,40,25,22,61,78,70,71,71,70,71,62,79,68,107,114,104,85,109,109,122,106,108,106,110,115,106,84,183,109,102,119,125,123,111,129,388,388,378,-413,380,361,1968,1946,29985,29983,29989,1964,29987,570,654,675,1133,1133]} 1. e4 {[%emt 0:00:07]} c6 {[%emt 0:00:08]} 2. Nf3 {[%emt 0:00:40]} d5 {[%emt 0:00:06]} 3. Nc3 {[%emt 0:00:19]} Bg4 {[%emt 0:00:11]} 4. h3 {[%emt 0:00:36]} Bxf3 {[%emt 0:00:23]} 5. Qxf3 {[%emt 0:00:07]} e6 {[%emt 0:00:26]} 6. Be2 {[%emt 0:00:36]} d4 {[%emt 0:02:05] B11: Caro-Kann: Two Knights Variation.} 7. Nb1 {[%emt 0:03:13]} Nd7 {[%emt 0:03:42]} 8. Qg3 $5 {[%emt 0:05:50][%mdl 4] Exploring less charted territory.} h5 $146 {[%emt 0:08:48]} ({Predecessor:} 8... d3 9. Bxd3 Nc5 10. Nc3 Nxd3+ 11. cxd3 Ne7 12. O-O Ng6 13. f4 Bc5+ 14. Kh1 f5 15. exf5 exf5 {½-½ Reprintsev,A (2227)-Ianovsky,M (2218) Titled Tuesday intern op 05th Sep Early blitz 2023 (3)}) 9. f4 {[%emt 0:07:14]} Qc7 {[%emt 0:02:41]} 10. d3 {[%emt 0:04:32]} O-O-O {[%emt 0:02:41]} 11. Nd2 {[%emt 0:12:41]} f5 {[%emt 0:06:05]} 12. Qf2 {[%emt 0:14:01]} Ngf6 {[%emt 0:02:37]} 13. e5 {[%emt 0:04:27]} Nd5 {[%emt 0:00:26]} 14. Nf3 {[%emt 0:00:47]} Bb4+ {[%emt 0:05:57]} 15. Kf1 {[%emt 0:00:58]} Bc5 {[%emt 0:00:03]} 16. Ng5 {[%emt 0:02:54]} Nf8 {[%emt 0:01:40]} 17. c4 {[%emt 0:07:22]} Ne3+ {[%emt 0:01:34]} 18. Kg1 {[%emt 0:00:16]} a5 {[%emt 0:10:25]} 19. Kh2 {[%emt 0:04:09]} (19. h4 $16) 19... Qe7 {[%emt 0:05:49]} ({Black should try} 19... Rh6 $11) 20. Bd2 $1 $14 {[%emt 0:02:31]} b6 {[%emt 0:03:02]} (20... Nxc4 $14 21. dxc4 d3) 21. Nf3 {[%emt 0:06:01]} (21. a3 $1 $16 {[%cal Ob2b4] b4! would now be deadly.} a4 22. Rhb1 (22. b4 axb3 23. a4 Nd7 $17)) 21... Ng6 {[%emt 0:10:35]} (21... Kb7 $11 {keeps the balance.}) 22. Qg3 {[%emt 0:05:21]} Qe8 {[%emt 0:03:12]} ({Better is} 22... Rh6 $14) 23. h4 {[%emt 0:01:24]} Ng4+ {[%emt 0:03:12]} 24. Kh3 {[%emt 0:02:37]} Kc7 {[%emt 0:05:05]} 25. Bd1 {[%emt 0:03:29]} Bb4 {[%emt 0:02:56]} (25... Be7 $14) 26. Bc1 {[%emt 0:00:55]} (26. Bxb4 $16 axb4 27. Ng5) 26... Be7 $14 {[%emt 0:01:04]} 27. Ba4 {[%emt 0:03:07]} b5 {[%emt 0:03:52]} 28. cxb5 {[%emt 0:00:20]} cxb5 {[%emt 0:00:03]} 29. Bd1 {[%emt 0:01:00]} Qc6 {[%emt 0:02:32]} 30. Bd2 {[%emt 0:01:21]} Qb6 {[%emt 0:00:07]} 31. a4 {[%emt 0:03:01]} b4 {[%emt 0:01:30]} 32. Bb3 {[%emt 0:01:05]} Kb8 {[%emt 0:01:24]} 33. Rhc1 {[%emt 0:00:34]} Rc8 {[%emt 0:00:22]} 34. Qe1 {[%emt 0:01:43]} Rxc1 {[%emt 0:01:27]} 35. Rxc1 {[%emt 0:00:07]} Rc8 {[%emt 0:00:05]} 36. Kg3 {[%emt 0:06:25]} Nf8 {[%emt 0:09:48]} 37. Qd1 {[%emt 0:02:07]} Nd7 {[%emt 0:07:36]} 38. Rxc8+ {[%emt 0:00:51]} Kxc8 {[%emt 0:00:02]} 39. Qc2+ {[%emt 0:01:37]} Kb7 {[%emt 0:00:09]} 40. Qc4 {[%emt 0:01:16]} Nc5 {[%emt 0:00:11]} 41. Bd1 {[%emt 0:52:12]} Qd8 {[%emt 0:06:41] [#]} (41... Ne3 42. Bxe3 dxe3 43. Nd4 $16) (41... Qc6 $16 {was necessary.} 42. b3 (42. Nxd4 $2 Ne4+ 43. Kh3 Ngf2+ 44. Kh2 Qxc4 $19) 42... Na6 (42... Ne3 $2 43. Bxe3 dxe3 44. Nd4 $18)) 42. Nxd4 {[%emt 0:00:00]} ({White should play} 42. Be2 $1 $18) 42... Bxh4+ $16 {[%emt 0:01:13]} 43. Kh3 {[%emt 0:00:00]} Nf2+ {[%emt 0:03:10]} 44. Kh2 {[%emt 0:00:00]} Nxd1 {[%emt 0:00:48]} 45. Qxc5 {[%emt 0:00:00]} Bf2 $2 {[%emt 0:04:04][%mdl 8192]} (45... Qb6 $16 46. Qxb6+ Kxb6) 46. Qc6+ $18 {[%emt 0:00:00]} Ka7 {[%emt 0:00:29] [#]} 47. Nb5+ $1 {[%emt 0:00:00]} Kb8 {[%emt 0:00:03]} 48. g3 {[%emt 0:00:00]} h4 $2 {[%emt 0:12:24]} (48... Bb6 49. b3 (49. Qxe6 Nxb2 50. Nd6 h4 $18) 49... h4) 49. Nd6 $18 {[%emt 0:00:00]} hxg3+ {[%emt 0:00:04]} 50. Kg2 {[%emt 0:00:00]} Qe7 {[%emt 0:00:03]} 51. Qc8+ {[%emt 0:00:00]} Ka7 {[%emt 0:00:04]} 52. Qc2 {[%emt 0:00:00]} (52. Bxb4 $142 Nc3 53. bxc3 (53. Bxc3 g5 54. Bxa5 Qxd6 55. exd6 gxf4 56. Qc7+ Ka8 57. d7 f3+ 58. Kxf3 Ba7 59. d8=Q+ Bb8 60. Qdxb8#) 53... axb4 54. a5 Qxd6 55. exd6 g5 56. d7 (56. fxg5 f4 57. d7 f3+ 58. Kxf3 e5 59. d8=Q e4+ 60. dxe4 bxc3 61. Qe7#) 56... gxf4 57. d8=Q (57. d8=B f3+ 58. Kxf3 e5 59. a6 e4+ 60. Kg2 exd3 61. Qb7#) 57... f3+ 58. Kxf3 bxc3 59. Qe7#) 52... Qd8 {[%emt 0:02:25]} 53. Qxd1 {[%emt 0:00:00]} Qh8 {[%emt 0:00:05]} 54. Qf3 {[%emt 0:00:00]} 1-0

[Event "German Bundesliga 2023-24"]
[Site "Germany"]
[Date "2024.02.25"]
[Round "11.60"]
[White "Teclaf, Pawel"]
[Black "Gajewski, Grzegorz"]
[Result "1/2-1/2"]
[ECO "A13"]
[WhiteElo "2571"]
[BlackElo "2561"]
[Annotator "TA"]
[PlyCount "41"]
[EventDate "2023.10.20"]
[EventType "team-tourn"]
[EventCountry "GER"]
[SourceTitle "playchess.com"]
[Source "ChessBase"]
[SourceQuality "1"]
[TimeControl "40/6000+30:3000+30"]

{[%evp 9,41,3,12,13,34,11,29,32,17,25,25,11,16,0,0,-4,0,0,0,-10,0,0,0,0,0,0,0,0,0,0,0,0,0,0]} 1. Nf3 {[%emt 0:00:03]} d5 {[%emt 0:00:06]} 2. e3 {[%emt 0:00:03]} Nf6 {[%emt 0:00:05]} 3. c4 {[%emt 0:00:03]} e6 {[%emt 0:00:05]} 4. b3 {[%emt 0:00:04]} Bd6 {[%emt 0:00:04]} 5. Bb2 {[%emt 0:00:04]} O-O {[%emt 0:00:05]} 6. Nc3 {[%emt 0:00:02]} Nc6 {[%emt 0:00:06]} 7. a3 {[%emt 0:04:14]} d4 {[%emt 0:00:44]} 8. Nxd4 {[%emt 0:09:52] White has an edge.} Nxd4 {[%emt 0:00:30]} 9. exd4 {[%emt 0:00:05]} c6 {[%emt 0:00:07]} 10. Be2 {[%emt 0:19:09]} e5 {[%emt 0:01:52] The position is equal.} 11. d5 {[%emt 0:04:57]} cxd5 {[%emt 0:00:48]} 12. cxd5 {[%emt 0:01:06]} Bc5 {[%emt 0:12:18][%cal Oc5d4]} 13. O-O {[%emt 0:02:55]} Bd4 {[%emt 0:03:49]} 14. Qc2 {[%emt 0:06:04]} Bg4 {[%emt 0:02:32]} 15. Bxg4 {[%emt 0:12:16]} Nxg4 {[%emt 0:00:06]} 16. h3 {[%emt 0:00:01]} Nf6 {[%emt 0:00:07][%cal Oa8c8]} 17. Ne4 {[%emt 0:08:12]} Nxe4 {[%emt 0:01:07]} 18. Bxd4 {[%emt 0:03:21]} Qxd5 {[%emt 0:00:06]} 19. Rfe1 {[%emt 0:04:11]} Qxd4 {[%emt 0:06:51]} 20. Qxe4 {[%emt 0:00:05]} Qxe4 {[%emt 0:00:04]} 21. Rxe4 {[%emt 0:00:03] A rather calm draw.   Weighted Error Value: White=0.05 (flawless) /Black=0.04 (flawless) .  OK:         	White=7     	Black=8      Best:        	White=1     	---} 1/2-1/2